[Event "Liberia Championship 2023"]
[Site "Monrovia"]
[Date "2024.01.20"]
[Round "6.6"]
[White "John Jallah"]
[Black "Foday W. Kondoh"]
[Result "1-0"]
[ECO "C43"]
[WhiteElo "1761"]
[BlackElo "1785"]
[Annotator "NA RC"]
[PlyCount "75"]
[EventDate "2024.01.16"]
[EventType "swiss"]
[EventCountry "LBR"]
[SourceTitle "playchess.com"]
[Source "ChessBase"]
[SourceQuality "1"]
[TimeControl "40/5400+30:1800+30"]

1. e4 {[%emt 0:40:17]} e5 {[%emt 0:00:18]} 2. Nf3 {[%emt 0:00:12]} Nf6 {[%emt 0:01:09]} 3. d4 {[%emt 0:02:21]} exd4 {[%emt 0:01:13]} 4. e5 {[%emt 0:01:05]} Bb4+ {[%emt 0:08:29]} 5. c3 {[%emt 0:00:30]} dxc3 6. bxc3 {[%emt 0:00:18]} Be7 {[%emt 0:02:23]} 7. exf6 {[%emt 0:00:18]} Bxf6 {[%emt 0:01:01]} 8. Qe2+ {[%emt 0:00:51]} Be7 {[%emt 0:01:23]} 9. Qc2 {[%emt 0:00:17]} O-O {[%emt 0:02:28]} 10. Bd3 {[%emt 0:00:09]} d6 {[%emt 0:00:24]} 11. Bxh7+ {[%emt 0:01:10]} Kh8 {[%emt 0:00:02]} 12. Bd3 {[%emt 0:00:37]} Bg4 {[%emt 0:00:11]} 13. Nbd2 {[%emt 0:00:21]} Nd7 {[%emt 0:00:16]} 14. O-O {[%emt 0:00:16]} Nc5 {[%emt 0:01:07]} 15. Bf5 Bxf5 {[%emt 0:00:06]} 16. Qxf5 g6 {[%emt 1:18:00]} 17. Qg4 {[%emt 0:03:41]} Kg7 {[%emt 0:00:30]} 18. Nb3 {[%emt 0:47:07]} Nd7 {[%emt 0:00:00]} 19. Be3 {[%emt 0:00:00]} c5 {[%emt 0:00:00]} 20. Rfd1 {[%emt 0:00:00]} Nf6 {[%emt 0:00:00]} 21. Qf4 {[%emt 0:00:00]} b6 {[%emt 0:00:00]} 22. Qh6+ {[%emt 0:00:00]} Kg8 {[%emt 0:00:00]} 23. Ng5 {[%emt 0:00:00]} Re8 {[%emt 0:00:00]} 24. c4 {[%emt 0:00:00]} Bf8 {[%emt 0:00:00]} 25. Qh3 {[%emt 0:00:00]} Nh5 {[%emt 0:00:00]} 26. Qf3 {[%emt 0:00:00]} Qd7 {[%emt 0:00:00]} 27. g4 {[%emt 0:00:00]} f6 {[%emt 0:00:00]} 28. gxh5 {[%emt 0:00:00]} fxg5 {[%emt 0:00:00]} 29. hxg6 {[%emt 0:00:00]} Bg7 {[%emt 0:00:00]} 30. Rac1 {[%emt 0:00:00]} Rad8 {[%emt 0:00:00]} 31. Bxg5 {[%emt 0:00:00]} Rc8 {[%emt 0:00:00]} 32. Qd5+ {[%emt 0:00:00]} Kh8 {[%emt 0:00:00]} 33. Qf3 {[%emt 0:00:00]} Re5 {[%emt 0:00:00]} 34. Bf6 {[%emt 0:00:00]} Rf8 {[%emt 0:00:00]} 35. Rxd6 {[%emt 0:00:00]} Qf5 {[%emt 0:00:00]} 36. Bxg7+ {[%emt 0:00:00]} Kxg7 {[%emt 0:00:00]} 37. Qb7+ {[%emt 0:00:00]} Kh6 {[%emt 0:00:00]} 38. g7+ {[%emt 0:00:00]} 1-0

[Event "Liberia Championship 2023"]
[Site "Monrovia"]
[Date "2024.01.20"]
[Round "6.7"]
[White "Martin Dunbar"]
[Black "Kennedy Zinnah Kengo"]
[Result "1-0"]
[ECO "C55"]
[WhiteElo "1709"]
[BlackElo "1789"]
[Annotator "NA RC"]
[PlyCount "113"]
[EventDate "2024.01.16"]
[EventType "swiss"]
[EventCountry "LBR"]
[SourceTitle "playchess.com"]
[Source "ChessBase"]
[SourceQuality "1"]
[TimeControl "40/5400+30:1800+30"]

1. e4 {[%emt 1:31:00]} e5 {[%emt 1:31:00]} 2. Nf3 {[%emt 0:00:00]} Nc6 {[%emt 0:00:00]} 3. Bc4 {[%emt 0:00:00]} Bc5 {[%emt 0:00:00]} 4. a3 {[%emt 0:00:00]} Nf6 {[%emt 0:00:00]} 5. Nc3 {[%emt 0:00:00]} O-O {[%emt 0:00:00]} 6. d3 {[%emt 0:00:00]} d6 {[%emt 0:00:00]} 7. h3 {[%emt 0:00:00]} h6 {[%emt 0:00:00]} 8. Qe2 {[%emt 0:00:00]} Nd4 {[%emt 0:00:00]} 9. Nxd4 {[%emt 0:00:00]} exd4 {[%emt 0:00:00]} 10. Nd5 {[%emt 0:00:00]} Nxd5 {[%emt 0:00:00]} 11. Bxd5 {[%emt 0:00:00]} c6 {[%emt 0:00:00]} 12. Ba2 {[%emt 0:05:30]} d5 {[%emt 0:05:30]} 13. Bd2 {[%emt 0:00:30]} dxe4 {[%emt 0:00:30]} 14. dxe4 {[%emt 0:00:00]} Qf6 {[%emt 0:00:00]} 15. O-O-O {[%emt 0:00:00]} Re8 {[%emt 0:00:00]} 16. f4 {[%emt 0:00:00]} Bf5 {[%emt 0:00:00]} 17. Qc4 {[%emt 0:02:00]} Be6 {[%emt 0:02:00]} 18. Qxc5 {[%emt 0:00:00]} Bxa2 {[%emt 0:00:00]} 19. e5 {[%emt 0:01:00]} Qe7 {[%emt 0:01:00]} 20. Qxe7 {[%emt 0:00:00]} Rxe7 {[%emt 0:00:00]} 21. b3 {[%emt 0:00:00]} d3 {[%emt 0:00:00]} 22. Kb2 {[%emt 0:00:00]} dxc2 {[%emt 0:00:00]} 23. Kxc2 {[%emt 0:02:00]} Rd7 24. Bb4 {[%emt 0:00:00]} Rad8 {[%emt 0:00:00]} 25. Rxd7 {[%emt 0:00:00]} Rxd7 {[%emt 0:00:00]} 26. Bd6 {[%emt 0:00:00]} f6 {[%emt 0:00:00]} 27. Kb2 {[%emt 0:00:00]} fxe5 {[%emt 0:00:00]} 28. fxe5 {[%emt 0:00:00]} Bxb3 {[%emt 0:00:00]} 29. Kxb3 {[%emt 0:00:00]} Kf7 {[%emt 0:00:00]} 30. Rf1+ {[%emt 0:00:00]} Ke6 {[%emt 0:00:00]} 31. Kc4 {[%emt 0:00:00]} b6 32. Rf8 {[%emt 0:00:00]} h5 {[%emt 0:00:00]} 33. Re8+ {[%emt 0:00:00]} Kf5 {[%emt 0:00:00]} 34. Rc8 {[%emt 0:00:00]} Rf7 {[%emt 0:00:00]} 35. Rc7 Rxc7 36. Bxc7 {[%emt 0:00:00]} Ke6 {[%emt 0:00:00]} 37. Kd4 {[%emt 0:00:00]} Kd7 {[%emt 0:00:00]} 38. Bd6 {[%emt 0:07:30]} a5 {[%emt 0:09:30]} 39. g4 {[%emt 0:00:30]} hxg4 {[%emt 0:00:30]} 40. hxg4 {[%emt 0:00:00]} g6 {[%emt 0:00:00]} 41. Ke4 {[%emt 0:00:00]} a4 {[%emt 0:00:00]} 42. Kf4 {[%emt 0:00:00]} c5 {[%emt 0:00:00]} 43. Kg5 {[%emt 0:00:00]} Ke6 {[%emt 0:00:00]} 44. Kxg6 {[%emt 0:00:00]} c4 {[%emt 0:00:00]} 45. Kh7 {[%emt 0:33:00]} c3 {[%emt 0:33:00]} 46. Bb4 {[%emt 0:00:30]} Kxe5 {[%emt 0:00:30]} 47. g5 {[%emt 0:00:00]} c2 {[%emt 0:00:00]} 48. Bd2 {[%emt 0:01:00]} Kd4 {[%emt 0:01:00]} 49. g6 {[%emt 0:00:00]} Kd3 {[%emt 0:00:00]} 50. Bc1 {[%emt 0:01:00]} Ke2 {[%emt 0:01:00]} 51. g7 {[%emt 0:00:00]} Kd1 {[%emt 0:00:00]} 52. Bb2 {[%emt 0:00:00]} c1=Q {[%emt 0:00:00]} 53. Bxc1 {[%emt 0:00:00]} Kxc1 {[%emt 0:00:00]} 54. g8=Q {[%emt 0:00:00]} Kb2 {[%emt 0:00:00]} 55. Qf8 {[%emt 0:02:30]} b5 {[%emt 0:02:30]} 56. Qb4+ {[%emt 0:00:30]} Ka2 {[%emt 0:00:30]} 57. Kg6 {[%emt 0:00:00]} 1-0

[Event "Liberia Championship 2023"]
[Site "Monrovia"]
[Date "2024.01.20"]
[Round "6.8"]
[White "Jacob, Jallah"]
[Black "Miller Moore"]
[Result "1-0"]
[ECO "A05"]
[WhiteElo "1781"]
[BlackElo "1677"]
[Annotator "NA RC"]
[PlyCount "71"]
[EventDate "2024.01.16"]
[EventType "swiss"]
[EventCountry "LBR"]
[SourceTitle "playchess.com"]
[Source "ChessBase"]
[SourceQuality "1"]
[TimeControl "40/5400+30:1800+30"]

1. Nf3 {[%emt 0:00:01]} Nf6 {[%emt 0:06:14]} 2. g3 {[%emt 0:00:00]} b6 {[%emt 0:00:20]} 3. Bg2 {[%emt 0:00:00]} Bb7 {[%emt 0:00:14]} 4. b3 {[%emt 0:00:00]} g6 {[%emt 0:00:35]} 5. Bb2 {[%emt 0:00:12]} Bg7 {[%emt 0:00:11]} 6. d3 {[%emt 0:00:09]} Nc6 {[%emt 0:00:22]} 7. O-O {[%emt 0:00:10]} O-O {[%emt 0:00:06]} 8. e4 {[%emt 0:00:42]} d6 {[%emt 0:01:19]} 9. Nbd2 {[%emt 0:00:21]} Re8 {[%emt 0:01:15]} 10. Rb1 {[%emt 0:03:29]} Rb8 {[%emt 0:00:10]} 11. Re1 {[%emt 0:01:32]} e5 {[%emt 0:00:42]} 12. a3 {[%emt 0:02:02]} Qd7 {[%emt 0:01:15]} 13. d4 {[%emt 0:03:39]} exd4 {[%emt 0:00:23]} 14. Nxd4 {[%emt 0:00:12]} Re7 {[%emt 0:02:36]} 15. Nxc6 {[%emt 0:00:21]} Bxc6 {[%emt 0:00:41]} 16. Qf3 {[%emt 0:05:06]} Rbe8 {[%emt 1:22:07]} 17. Bxf6 {[%emt 0:00:21]} Bxf6 {[%emt 0:00:00]} 18. Qxf6 {[%emt 0:00:11]} Re6 {[%emt 0:00:00]} 19. Qd4 {[%emt 0:00:53]} Ba8 {[%emt 0:00:00]} 20. Re3 {[%emt 0:01:28]} c5 {[%emt 0:00:00]} 21. Qd3 {[%emt 0:00:17]} Qc6 {[%emt 0:00:00]} 22. Bf3 {[%emt 0:00:49]} Rf6 {[%emt 0:00:00]} 23. Bg2 {[%emt 0:01:19]} Re5 {[%emt 0:00:00]} 24. f4 {[%emt 0:00:43]} Re7 {[%emt 0:00:00]} 25. Bf3 {[%emt 0:01:00]} Qe8 {[%emt 0:00:00]} 26. Rbe1 {[%emt 0:00:27]} b5 {[%emt 0:00:00]} 27. e5 {[%emt 0:01:07]} dxe5 {[%emt 0:00:00]} 28. Bxa8 {[%emt 0:01:01]} Qxa8 {[%emt 0:00:00]} 29. Rxe5 {[%emt 0:00:19]} Rxe5 {[%emt 0:00:00]} 30. Rxe5 {[%emt 0:00:22]} Qc6 {[%emt 0:00:00]} 31. Ne4 {[%emt 0:02:38]} Re6 {[%emt 0:00:00]} 32. Rxe6 {[%emt 0:00:11]} fxe6 {[%emt 0:00:00]} 33. Qd8+ {[%emt 0:00:27]} Kg7 {[%emt 0:00:00]} 34. Qe7+ {[%emt 0:00:54]} Kh6 {[%emt 0:00:00]} 35. Qf8+ {[%emt 0:00:22]} Kh5 {[%emt 0:00:00]} 36. Nf6# {[%emt 0:00:21]} 1-0

[Event "Liberia Championship 2023"]
[Site "Monrovia"]
[Date "2024.01.20"]
[Round "6.9"]
[White "Prince Jegbadai"]
[Black "Alfred J. Kollie"]
[Result "0-1"]
[ECO "C24"]
[WhiteElo "1627"]
[BlackElo "1612"]
[Annotator "NA RC"]
[PlyCount "114"]
[EventDate "2024.01.16"]
[EventType "swiss"]
[EventCountry "LBR"]
[SourceTitle "playchess.com"]
[Source "ChessBase"]
[SourceQuality "1"]
[TimeControl "40/5400+30:1800+30"]

1. e4 {[%emt 0:00:08]} e5 {[%emt 0:00:21]} 2. Bc4 {[%emt 0:00:10]} Be7 {[%emt 0:00:38]} 3. d3 {[%emt 0:00:22]} Nf6 {[%emt 0:00:19]} 4. Nf3 {[%emt 0:00:27]} d6 {[%emt 0:01:16]} 5. h3 {[%emt 0:00:09]} Nc6 {[%emt 0:00:24]} 6. a3 {[%emt 0:00:17]} O-O {[%emt 0:00:05]} 7. O-O {[%emt 0:00:05]} Na5 {[%emt 0:00:25]} 8. Ba2 {[%emt 0:00:17]} c5 {[%emt 0:00:08]} 9. Nc3 {[%emt 0:00:21]} Be6 {[%emt 0:00:09]} 10. Ng5 {[%emt 0:00:28]} Bxa2 {[%emt 0:00:16]} 11. Nxa2 {[%emt 0:00:14]} Nc6 {[%emt 0:00:10]} 12. c3 {[%emt 0:00:14]} a6 {[%emt 0:00:38]} 13. Be3 {[%emt 0:00:19]} b5 {[%emt 0:00:08]} 14. Nc1 {[%emt 0:00:56]} a5 {[%emt 0:00:02]} 15. Ne2 {[%emt 0:00:22]} Nh5 {[%emt 0:00:06]} 16. Nf3 {[%emt 0:00:39]} a4 {[%emt 0:00:25]} 17. d4 {[%emt 0:00:30]} c4 {[%emt 0:00:11]} 18. d5 {[%emt 0:00:28]} Na5 {[%emt 0:00:09]} 19. Nh2 {[%emt 0:00:32]} g6 {[%emt 0:00:31]} 20. f4 {[%emt 0:00:19]} exf4 {[%emt 0:01:14]} 21. Nxf4 {[%emt 0:00:18]} Ng3 {[%emt 0:00:25]} 22. Rf3 {[%emt 1:33:55]} Nxe4 {[%emt 1:33:30]} 23. Ne2 {[%emt 0:00:00]} Nb3 {[%emt 0:00:30]} 24. Rb1 {[%emt 0:01:00]} Nbc5 {[%emt 0:00:00]} 25. Qf1 {[%emt 0:00:00]} f5 {[%emt 0:00:00]} 26. Nd4 {[%emt 0:00:00]} Rb8 {[%emt 0:00:00]} 27. Bh6 {[%emt 0:00:00]} Qb6 {[%emt 0:00:00]} 28. Bxf8 {[%emt 0:02:00]} Rxf8 {[%emt 0:02:30]} 29. Qd1 {[%emt 0:00:00]} Bf6 {[%emt 0:00:00]} 30. Nf1 {[%emt 0:00:00]} Nd3 {[%emt 0:00:00]} 31. Rxd3 {[%emt 0:00:00]} cxd3 {[%emt 0:00:00]} 32. Qxd3 {[%emt 0:00:00]} Qc5 {[%emt 0:00:00]} 33. Ne3 {[%emt 0:00:00]} Bg5 {[%emt 0:00:00]} 34. Re1 {[%emt 0:00:00]} Bxe3+ {[%emt 0:00:00]} 35. Rxe3 {[%emt 0:00:00]} Rb8 {[%emt 0:00:00]} 36. Kh2 {[%emt 0:00:00]} Qxd5 {[%emt 0:00:00]} 37. Nf3 {[%emt 0:00:00]} Qxd3 {[%emt 0:04:30]} 38. Rxd3 {[%emt 0:00:00]} h6 {[%emt 0:00:00]} 39. Rd5 {[%emt 0:00:00]} Kf7 {[%emt 0:01:00]} 40. Nd4 {[%emt 0:00:00]} f4 {[%emt 0:00:00]} 41. Rxb5 {[%emt 0:00:00]} Rxb5 {[%emt 0:00:00]} 42. Nxb5 {[%emt 0:00:00]} Ke6 {[%emt 0:00:00]} 43. c4 {[%emt 0:00:00]} Nd2 {[%emt 0:00:00]} 44. Nc3 {[%emt 0:38:00]} Nxc4 {[%emt 0:32:30]} 45. Nxa4 {[%emt 0:00:00]} d5 {[%emt 0:00:00]} 46. Kg1 {[%emt 0:01:00]} d4 {[%emt 0:01:00]} 47. Kf1 {[%emt 0:00:00]} Kd5 {[%emt 0:00:00]} 48. Ke2 {[%emt 0:00:00]} g5 {[%emt 0:00:00]} 49. Kf3 {[%emt 0:00:00]} d3 {[%emt 0:00:00]} 50. Nc3+ {[%emt 0:02:00]} Kd4 51. Nb5+ Kc5 52. Nc3 {[%emt 0:00:00]} Nxb2 {[%emt 0:00:00]} 53. Ne4+ Kd4 54. Nd2 {[%emt 0:00:00]} Nc4 {[%emt 0:00:00]} 55. Ne4 {[%emt 0:00:00]} Ne5+ {[%emt 0:00:00]} 56. Kf2 {[%emt 0:00:00]} Kxe4 {[%emt 0:00:00]} 57. a4 {[%emt 0:00:00]} Nc4 {[%emt 0:00:00]} 0-1

[Event "Liberia Championship 2023"]
[Site "Monrovia"]
[Date "2024.01.21"]
[Round "7.1"]
[White "Thomas, Saah"]
[Black "Arnold Smith"]
[Result "1-0"]
[ECO "C30"]
[WhiteElo "1889"]
[BlackElo "1844"]
[Annotator "NA RC"]
[PlyCount "79"]
[EventDate "2024.01.16"]
[EventType "swiss"]
[EventCountry "LBR"]
[SourceTitle "playchess.com"]
[Source "ChessBase"]
[SourceQuality "1"]
[TimeControl "40/5400+30:1800+30"]

1. e4 {[%emt 0:00:03]} e5 {[%emt 0:00:09]} 2. Bc4 {[%emt 0:00:49]} Nf6 {[%emt 0:00:25]} 3. Nc3 {[%emt 0:02:56]} Bc5 {[%emt 0:00:38]} 4. f4 {[%emt 0:01:28]} d6 {[%emt 0:00:22]} 5. Nf3 {[%emt 0:00:06]} Bg4 {[%emt 0:02:05]} 6. h3 {[%emt 0:00:25]} Bxf3 {[%emt 0:00:04]} 7. Qxf3 {[%emt 0:00:07]} Nc6 {[%emt 0:00:03]} 8. Ne2 {[%emt 0:00:11]} Qe7 {[%emt 0:00:20]} 9. d3 {[%emt 0:00:47]} Nd4 {[%emt 0:09:19]} 10. Nxd4 {[%emt 0:00:17]} Bxd4 {[%emt 0:00:04]} 11. c3 {[%emt 0:00:17]} Bb6 {[%emt 0:00:04]} 12. g4 {[%emt 0:00:20]} Nd7 {[%emt 0:01:58]} 13. Rf1 {[%emt 0:01:22]} f6 {[%emt 0:01:16]} 14. a4 {[%emt 0:00:38]} a5 {[%emt 0:01:02]} 15. f5 {[%emt 0:00:29]} O-O-O {[%emt 0:00:30]} 16. Be3 {[%emt 0:00:26]} Kb8 {[%emt 0:00:34]} 17. b4 {[%emt 0:00:18]} Rc8 {[%emt 0:01:46]} 18. bxa5 {[%emt 0:00:24]} Bxa5 {[%emt 0:00:24]} 19. Kd2 {[%emt 0:00:10]} Nb6 {[%emt 0:00:39]} 20. Be6 {[%emt 0:00:15]} Rcd8 {[%emt 0:00:21]} 21. Rfb1 {[%emt 0:00:03]} Nd7 {[%emt 0:09:18]} 22. Rb5 {[%emt 0:00:35]} Bb6 {[%emt 0:00:09]} 23. Rab1 {[%emt 0:00:13]} Bxe3+ {[%emt 0:03:42]} 24. Qxe3 {[%emt 0:00:03]} Nc5 {[%emt 0:00:06]} 25. Bd5 {[%emt 0:00:29]} Kc8 {[%emt 0:07:29]} 26. Bxb7+ {[%emt 0:01:25]} Kd7 {[%emt 0:01:16]} 27. a5 {[%emt 0:00:46]} Nxb7 {[%emt 0:02:30]} 28. Rxb7 {[%emt 0:00:03]} Ra8 {[%emt 0:00:54]} 29. Qb6 {[%emt 0:00:18]} Rhc8 {[%emt 0:00:19]} 30. Qb5+ {[%emt 0:00:09]} Kd8 31. Qd5 h6 {[%emt 0:02:59]} 32. c4 {[%emt 0:01:03]} Ke8 {[%emt 0:00:38]} 33. Qc6+ {[%emt 0:00:33]} Qd7 {[%emt 0:00:28]} 34. Qd5 {[%emt 0:01:30]} Kf8 {[%emt 0:00:39]} 35. Ra1 {[%emt 0:01:45]} Ra6 {[%emt 0:01:35]} 36. Qb5 {[%emt 0:00:05]} Qxb5 {[%emt 0:04:57]} 37. cxb5 {[%emt 0:00:02]} Raa8 {[%emt 0:00:11]} 38. a6 {[%emt 0:00:05]} Ke8 {[%emt 0:00:08]} 39. Rc1 {[%emt 0:00:07]} Kd8 {[%emt 0:50:39]} 40. a7 {[%emt 1:29:28]} 1-0

[Event "Liberia Championship 2023"]
[Site "Monrovia"]
[Date "2024.01.21"]
[Round "7.2"]
[White "Anthony Waylea, Jr."]
[Black "Obediah Saah"]
[Result "1/2-1/2"]
[ECO "C18"]
[WhiteElo "1939"]
[BlackElo "1756"]
[Annotator "RC"]
[PlyCount "82"]
[EventDate "2024.01.16"]
[EventType "swiss"]
[EventCountry "LBR"]
[SourceTitle "playchess.com"]
[Source "ChessBase"]
[SourceQuality "1"]
[TimeControl "40/5400+30:1800+30"]

1. e4 {[%emt 0:14:57]} e6 {[%emt 0:01:40]} 2. d4 {[%emt 0:00:09]} d5 {[%emt 0:00:04]} 3. Nc3 {[%emt 0:00:07]} Bb4 {[%emt 0:00:56]} 4. e5 {[%emt 0:01:44]} c5 {[%emt 0:00:12]} 5. a3 {[%emt 0:01:56]} Bxc3+ {[%emt 0:00:06]} 6. bxc3 {[%emt 0:00:11]} Qc7 {[%emt 0:00:29]} 7. f4 {[%emt 0:00:25]} Ne7 {[%emt 0:01:13]} 8. Nf3 {[%emt 0:00:22]} a5 {[%emt 0:01:38]} 9. a4 {[%emt 0:00:30]} b6 {[%emt 0:00:56]} 10. Bd3 {[%emt 0:01:14]} Ba6 {[%emt 1:28:16]} 11. O-O {[%emt 0:00:26]} Bxd3 {[%emt 0:00:00]} 12. Qxd3 {[%emt 0:00:34]} c4 {[%emt 0:00:00]} 13. Qe2 {[%emt 0:00:25]} h5 {[%emt 0:00:00]} 14. Ba3 {[%emt 0:01:25]} Nf5 {[%emt 0:00:00]} 15. g3 {[%emt 0:01:13]} Nc6 {[%emt 0:00:00]} 16. Rfb1 {[%emt 0:00:54]} Na7 {[%emt 0:00:00]} 17. Rb2 {[%emt 0:02:05]} Nc8 {[%emt 0:00:00]} 18. Rab1 {[%emt 0:00:46]} Ra6 {[%emt 0:00:00]} 19. Qe1 {[%emt 0:01:36]} Rh6 {[%emt 0:00:00]} 20. Ng5 {[%emt 0:00:27]} Qc6 {[%emt 0:00:00]} 21. Rb5 {[%emt 0:00:04]} Ra7 {[%emt 0:00:00]} 22. Qc1 {[%emt 0:00:56]} f6 {[%emt 0:00:00]} 23. Nf3 {[%emt 0:03:01]} Rd7 {[%emt 0:00:00]} 24. Kf2 {[%emt 0:03:41]} Rg6 {[%emt 0:00:00]} 25. Qf1 {[%emt 0:01:44]} Kf7 {[%emt 0:00:00]} 26. Qh3 {[%emt 0:00:13]} Rh6 {[%emt 0:00:00]} 27. Qg2 {[%emt 0:04:18]} Rg6 {[%emt 0:00:00]} 28. Qh3 {[%emt 0:00:23]} Rh6 {[%emt 0:00:00]} 29. Ng5+ {[%emt 0:07:22]} fxg5 {[%emt 0:00:00]} 30. fxg5 {[%emt 0:00:08]} Rh8 {[%emt 0:00:00]} 31. g4 {[%emt 0:00:13]} g6 {[%emt 0:00:00]} 32. gxf5 {[%emt 0:01:02]} exf5 {[%emt 0:00:00]} 33. Qf3 {[%emt 0:01:25]} Ke6 {[%emt 0:00:00]} 34. h4 {[%emt 0:00:19]} Rhh7 {[%emt 0:00:00]} 35. Ke3 {[%emt 0:01:58]} Rb7 {[%emt 0:00:00]} 36. Kf4 {[%emt 0:05:41]} Ra7 {[%emt 0:00:00]} 37. Qd1 {[%emt 0:00:59]} Rhb7 {[%emt 0:00:00]} 38. R1b2 {[%emt 0:00:23]} Ra8 {[%emt 0:00:00]} 39. Qb1 {[%emt 0:01:34]} Rab8 {[%emt 0:00:00]} 40. Bc5 {[%emt 0:00:00]} Qc7 {[%emt 0:00:00]} 41. Ba3 {[%emt 0:05:51]} Qc6 {[%emt 0:00:00]} 1/2-1/2

[Event "Liberia Championship 2023"]
[Site "Monrovia"]
[Date "2024.01.21"]
[Round "7.3"]
[White "Barcon, Harmon"]
[Black "Joel O. Ebiekuta"]
[Result "1-0"]
[ECO "C64"]
[WhiteElo "1902"]
[BlackElo "1875"]
[Annotator "RC"]
[PlyCount "99"]
[EventDate "2024.01.16"]
[EventType "swiss"]
[EventCountry "LBR"]
[SourceTitle "playchess.com"]
[Source "ChessBase"]
[SourceQuality "1"]
[TimeControl "40/5400+30:1800+30"]

1. e4 {[%emt 0:00:05]} e5 {[%emt 0:51:42]} 2. Nf3 {[%emt 0:00:15]} Nc6 {[%emt 0:00:00]} 3. Bb5 {[%emt 0:00:30]} Bc5 {[%emt 0:00:01]} 4. O-O {[%emt 0:00:52]} Nge7 {[%emt 0:00:10]} 5. c3 {[%emt 0:00:13]} Bb6 {[%emt 0:00:02]} 6. d4 {[%emt 0:00:23]} exd4 {[%emt 0:00:41]} 7. cxd4 {[%emt 0:00:02]} O-O {[%emt 0:00:01]} 8. Be3 {[%emt 0:01:40]} d5 {[%emt 0:00:04]} 9. e5 {[%emt 0:00:56]} f6 {[%emt 0:00:06]} 10. exf6 {[%emt 0:00:41]} Rxf6 {[%emt 0:00:01]} 11. h3 {[%emt 0:00:04]} h6 {[%emt 0:00:04]} 12. Ne5 {[%emt 0:03:58]} Qd6 {[%emt 0:01:59]} 13. Bxc6 {[%emt 0:04:36]} bxc6 {[%emt 0:00:01]} 14. Nc3 {[%emt 0:01:30]} Ba6 {[%emt 0:00:39]} 15. Re1 {[%emt 0:00:06]} Raf8 {[%emt 0:00:21]} 16. Na4 {[%emt 0:04:58]} Nf5 {[%emt 0:00:21]} 17. Nxb6 {[%emt 0:00:15]} Nxe3 {[%emt 0:01:42]} 18. Rxe3 {[%emt 0:00:07]} axb6 {[%emt 0:01:49]} 19. f3 {[%emt 0:01:18]} c5 {[%emt 0:00:34]} 20. Rc1 {[%emt 0:00:55]} cxd4 {[%emt 0:00:11]} 21. Qxd4 {[%emt 0:01:19]} c5 {[%emt 0:00:12]} 22. Qh4 {[%emt 0:02:32]} Rf4 {[%emt 0:00:36]} 23. Qg3 {[%emt 0:01:03]} Kh7 {[%emt 0:00:14]} 24. Rce1 {[%emt 0:05:31]} d4 {[%emt 0:00:32]} 25. Ra3 {[%emt 0:00:04]} d3 {[%emt 0:04:59]} 26. Rxa6 {[%emt 0:02:16]} d2 {[%emt 0:00:02]} 27. Rd1 {[%emt 0:00:07]} Qxe5 {[%emt 0:01:06]} 28. Rxd2 {[%emt 0:00:10]} R8f6 {[%emt 0:00:12]} 29. Qf2 {[%emt 0:02:38]} Qg5 {[%emt 0:01:02]} 30. Ra3 {[%emt 0:01:15]} Rh4 {[%emt 0:03:32]} 31. Kh2 {[%emt 0:07:11]} Re4 {[%emt 0:00:36]} 32. Rad3 {[%emt 0:00:46]} Qe5+ {[%emt 0:01:01]} 33. Qg3 {[%emt 0:00:34]} Ref4 {[%emt 0:00:23]} 34. Rd5 {[%emt 0:01:55]} Qb8 {[%emt 0:01:04]} 35. Rd6 {[%emt 0:07:31]} Qf8 {[%emt 0:00:01]} 36. Rd8 {[%emt 0:02:14]} Qf7 {[%emt 0:00:16]} 37. R2d7 {[%emt 0:01:33]} Qg6 {[%emt 0:00:21]} 38. Rb8 {[%emt 0:00:34]} Rc4 {[%emt 0:00:35]} 39. Qxg6+ {[%emt 0:04:30]} Rxg6 {[%emt 0:00:02]} 40. Rd2 {[%emt 0:00:00]} Re6 {[%emt 0:00:00]} 41. Kg3 {[%emt 0:04:04]} Kg6 {[%emt 0:03:24]} 42. Kf2 {[%emt 0:01:17]} Rc1 {[%emt 0:01:49]} 43. f4 {[%emt 0:04:19]} h5 {[%emt 0:00:51]} 44. Rf8 {[%emt 0:01:28]} Kh7 {[%emt 0:01:54]} 45. f5 {[%emt 0:02:59]} Ree1 {[%emt 0:03:04]} 46. Rdd8 {[%emt 0:04:03]} Kh6 {[%emt 0:01:43]} 47. h4 {[%emt 0:03:24]} g6 {[%emt 0:02:40]} 48. Rh8+ {[%emt 0:03:58]} Kg7 {[%emt 0:00:32]} 49. Rdg8+ {[%emt 0:02:14]} Kf7 {[%emt 0:00:33]} 50. Rf8+ {[%emt 0:50:37]} 1-0

[Event "Liberia Championship 2023"]
[Site "Monrovia"]
[Date "2024.01.21"]
[Round "7.4"]
[White "James, Tondo"]
[Black "David Leroy Debblay"]
[Result "0-1"]
[ECO "D63"]
[WhiteElo "1837"]
[BlackElo "1791"]
[Annotator "NA RC"]
[PlyCount "92"]
[EventDate "2024.01.16"]
[EventType "swiss"]
[EventCountry "LBR"]
[SourceTitle "playchess.com"]
[Source "ChessBase"]
[SourceQuality "1"]
[TimeControl "40/5400+30:1800+30"]

1. d4 {[%emt 0:00:03]} Nf6 {[%emt 0:01:14]} 2. c4 {[%emt 0:00:03]} d5 {[%emt 0:00:52]} 3. Nf3 {[%emt 0:00:20]} e6 {[%emt 0:01:27]} 4. Bg5 {[%emt 0:00:27]} Be7 {[%emt 0:00:28]} 5. e3 {[%emt 0:00:02]} c6 {[%emt 0:03:11]} 6. Nc3 {[%emt 0:01:07]} Nbd7 {[%emt 0:05:46]} 7. Rc1 {[%emt 0:00:36]} O-O {[%emt 0:02:40]} 8. a3 {[%emt 0:00:07]} dxc4 {[%emt 0:00:19]} 9. Bxc4 {[%emt 0:00:14]} Nd5 {[%emt 0:05:40]} 10. Bxe7 {[%emt 0:00:25]} Nxe7 {[%emt 0:00:17]} 11. O-O {[%emt 0:00:59]} Ng6 {[%emt 0:00:06]} 12. Re1 {[%emt 0:02:58]} Nf6 {[%emt 0:01:31]} 13. Qc2 {[%emt 0:00:25]} Re8 {[%emt 0:01:45]} 14. Red1 {[%emt 0:00:32]} Qc7 {[%emt 0:03:09]} 15. Bd3 {[%emt 0:00:42]} a6 {[%emt 0:02:07]} 16. h4 {[%emt 0:02:40]} Ng4 {[%emt 0:03:01]} 17. g3 {[%emt 0:03:33]} Bd7 {[%emt 0:12:57]} 18. h5 {[%emt 0:04:38]} Nf8 {[%emt 0:00:25]} 19. Kg2 {[%emt 0:01:31]} f5 {[%emt 0:01:11]} 20. Rh1 {[%emt 0:01:02]} h6 {[%emt 0:01:01]} 21. Bc4 {[%emt 0:04:42]} Kh8 {[%emt 0:00:52]} 22. Ba2 {[%emt 0:02:18]} Re7 {[%emt 0:01:45]} 23. Ne2 {[%emt 0:00:35]} Be8 {[%emt 0:01:21]} 24. d5 {[%emt 0:01:40]} exd5 {[%emt 0:01:06]} 25. Qxf5 {[%emt 0:00:34]} Bd7 {[%emt 0:00:12]} 26. Qd3 {[%emt 0:05:46]} Ne5 {[%emt 0:00:34]} 27. Nxe5 {[%emt 0:04:43]} Qxe5 {[%emt 0:00:04]} 28. Bb1 {[%emt 0:02:42]} Bg4 {[%emt 0:02:37]} 29. Rh4 {[%emt 0:04:15]} Bxh5 {[%emt 0:06:35]} 30. Nf4 {[%emt 0:15:14]} Bf7 {[%emt 0:00:19]} 31. Qd2 {[%emt 0:18:20]} Kg8 {[%emt 0:00:58]} 32. Rch1 {[%emt 0:00:31]} Rd8 {[%emt 0:02:21]} 33. Nd3 {[%emt 0:07:09]} Qd6 {[%emt 0:02:01]} 34. Rg4 {[%emt 0:04:00]} Bg6 {[%emt 0:04:12]} 35. Rhh4 {[%emt 0:04:38]} Bf5 {[%emt 0:01:47]} 36. Rf4 {[%emt 0:02:01]} Ng6 {[%emt 0:02:32]} 37. Rh5 {[%emt 0:02:20]} Nxf4+ {[%emt 0:00:22]} 38. exf4 {[%emt 0:00:36]} Qg6 {[%emt 0:00:45]} 39. Rh1 {[%emt 0:03:29]} Rde8 {[%emt 0:00:25]} 40. Rd1 {[%emt 0:00:00]} Re2 {[%emt 0:00:00]} 41. Qc1 {[%emt 0:04:58]} Qh5 {[%emt 0:01:51]} 42. Ne5 {[%emt 0:02:50]} Bh3+ {[%emt 0:00:58]} 43. Kg1 {[%emt 0:09:35]} R8xe5 {[%emt 0:00:36]} 44. Qc3 {[%emt 0:01:17]} R5e3 {[%emt 0:01:02]} 45. Qa5 {[%emt 0:05:57]} Qf3 {[%emt 0:00:46]} 46. Qd8+ {[%emt 0:03:48]} Re8 {[%emt 0:58:22]} 0-1